[Event "GrandPrix_29.05"]
[Site "Chess.com"]
[Date "2020.05.29"]
[Round "5"]
[White "Gareth-Bale11"]
[Black "BMOchsner"]
[Result "1/2-1/2"]
[WhiteElo "2312"]
[BlackElo "2185"]
[TimeControl "600+2"]
[EndTime "11:34:10 PDT"]
[Termination "Game drawn - insufficient material"]

1. d4 {[%clk 0:09:57.9]} 1... Nf6 {[%clk 0:09:58.6]} 2. c4 {[%clk 0:09:56.7]}
2... e6 {[%clk 0:09:59.5]} 3. Nf3 {[%clk 0:09:45.6]} 3... d5 {[%clk 0:09:59.6]}
4. Nc3 {[%clk 0:09:45.6]} 4... dxc4 {[%clk 0:09:47.9]} 5. e4 {[%clk 0:09:29.1]}
5... b5 {[%clk 0:09:48.3]} 6. e5 {[%clk 0:09:29.5]} 6... Nd5 {[%clk 0:09:49.4]}
7. Nxb5 {[%clk 0:09:30.8]} 7... Nb6 {[%clk 0:09:49.8]} 8. Be2 {[%clk 0:09:30.2]}
8... Be7 {[%clk 0:09:44.6]} 9. O-O {[%clk 0:09:30.1]} 9... Nc6 {[%clk
0:09:42.9]} 10. Qd2 {[%clk 0:09:22.6]} 10... O-O {[%clk 0:09:21.3]} 11. Qf4
{[%clk 0:09:17.6]} 11... Rb8 {[%clk 0:08:38.6]} 12. Qg3 {[%clk 0:08:52.3]} 12...
Kh8 {[%clk 0:08:35.3]} 13. Rd1 {[%clk 0:08:51.1]} 13... Ba6 {[%clk 0:08:30.8]}
14. Nc3 {[%clk 0:08:48.3]} 14... Nb4 {[%clk 0:08:28]} 15. Bg5 {[%clk 0:08:04.7]}
15... N6d5 {[%clk 0:07:44.5]} 16. Ne4 {[%clk 0:07:45.5]} 16... h6 {[%clk
0:07:31.9]} 17. Bxe7 {[%clk 0:07:44.6]} 17... Nxe7 {[%clk 0:07:07.3]} 18. Nc5
{[%clk 0:07:41.2]} 18... Nf5 {[%clk 0:06:05.3]} 19. Qf4 {[%clk 0:07:37]} 19...
Bb5 {[%clk 0:05:32.3]} 20. Qc1 {[%clk 0:06:44.3]} 20... Nd5 {[%clk 0:03:19.1]}
21. Qd2 {[%clk 0:05:24.9]} 21... c3 {[%clk 0:02:52.6]} 22. bxc3 {[%clk
0:05:09.3]} 22... Bxe2 {[%clk 0:02:53.4]} 23. Qxe2 {[%clk 0:05:11.2]} 23... Nxc3
{[%clk 0:02:54.2]} 24. Qc4 {[%clk 0:05:04.7]} 24... Nxd1 {[%clk 0:02:48.1]} 25.
Rxd1 {[%clk 0:05:06.6]} 25... Rb6 {[%clk 0:02:28.8]} 26. Qa4 {[%clk 0:04:25.5]}
26... Qe8 {[%clk 0:02:16.4]} 27. Qxa7 {[%clk 0:04:20.6]} 27... Qc6 {[%clk
0:02:10.3]} 28. Qa5 {[%clk 0:04:09.8]} 28... Rd8 {[%clk 0:01:52.8]} 29. Qc3
{[%clk 0:04:01.1]} 29... Qb5 {[%clk 0:01:33.5]} 30. h3 {[%clk 0:03:23.2]} 30...
Qb4 {[%clk 0:01:24.3]} 31. Qa1 {[%clk 0:02:10]} 31... Qb2 {[%clk 0:01:04.9]} 32.
Nb3 {[%clk 0:02:04.7]} 32... Qxa1 {[%clk 0:00:59.6]} 33. Rxa1 {[%clk 0:02:06.6]}
33... Rb4 {[%clk 0:00:57.1]} 34. Rc1 {[%clk 0:02:04.5]} 34... Rd7 {[%clk
0:00:48.6]} 35. g4 {[%clk 0:01:31.5]} 35... Ne7 {[%clk 0:00:47.5]} 36. Nc5
{[%clk 0:01:31]} 36... Rd8 {[%clk 0:00:37]} 37. Nd3 {[%clk 0:01:04.7]} 37... Rb7
{[%clk 0:00:36.3]} 38. Nc5 {[%clk 0:01:00.4]} 38... Ra7 {[%clk 0:00:37.2]} 39.
a4 {[%clk 0:01:01.4]} 39... Nd5 {[%clk 0:00:37.2]} 40. h4 {[%clk 0:00:41.2]}
40... Nb6 {[%clk 0:00:37.3]} 41. g5 {[%clk 0:00:36.3]} 41... hxg5 {[%clk
0:00:37]} 42. hxg5 {[%clk 0:00:27.9]} 42... Kh7 {[%clk 0:00:32.8]} 43. Kg2
{[%clk 0:00:24.5]} 43... Rc8 {[%clk 0:00:30]} 44. Rh1+ {[%clk 0:00:22.3]} 44...
Kg8 {[%clk 0:00:30.7]} 45. g6 {[%clk 0:00:23.2]} 45... fxg6 {[%clk 0:00:27]} 46.
Nxe6 {[%clk 0:00:24.3]} 46... Rxa4 {[%clk 0:00:24.3]} 47. Neg5 {[%clk
0:00:25.2]} 47... Nd5 {[%clk 0:00:23.7]} 48. e6 {[%clk 0:00:24]} 48... Re8
{[%clk 0:00:20.6]} 49. Nf7 {[%clk 0:00:17]} 49... Nf4+ {[%clk 0:00:18.4]} 50.
Kg3 {[%clk 0:00:10.9]} 50... Nxe6 {[%clk 0:00:19.5]} 51. N3e5 {[%clk 0:00:09.3]}
51... Kf8 {[%clk 0:00:07.7]} 52. Rh8+ {[%clk 0:00:07.2]} 52... Ke7 {[%clk
0:00:08.9]} 53. Nxg6+ {[%clk 0:00:07.5]} 53... Kxf7 {[%clk 0:00:09.9]} 54. Ne5+
{[%clk 0:00:09.1]} 54... Ke7 {[%clk 0:00:10.9]} 55. Nc6+ {[%clk 0:00:09.2]}
55... Kd7 {[%clk 0:00:09.2]} 56. Ne5+ {[%clk 0:00:09.9]} 56... Kd8 {[%clk
0:00:07.5]} 57. Nc6+ {[%clk 0:00:10.9]} 57... Kd7 {[%clk 0:00:08.2]} 58. Ne5+
{[%clk 0:00:12.3]} 58... Ke7 {[%clk 0:00:09.2]} 59. Nc6+ {[%clk 0:00:13.4]}
59... Kd6 {[%clk 0:00:05.9]} 60. Rxe8 {[%clk 0:00:13.9]} 60... Kxc6 {[%clk
0:00:06]} 61. Rxe6+ {[%clk 0:00:14.8]} 61... Kd7 {[%clk 0:00:05.2]} 62. Rg6
{[%clk 0:00:13.6]} 62... Rxd4 {[%clk 0:00:06]} 63. Rxg7+ {[%clk 0:00:15]} 63...
Kd6 {[%clk 0:00:07.4]} 64. f4 {[%clk 0:00:15.9]} 64... c5 {[%clk 0:00:08.6]} 65.
Kf3 {[%clk 0:00:16.8]} 65... c4 {[%clk 0:00:09.5]} 66. Ke3 {[%clk 0:00:17.5]}
66... Rd3+ {[%clk 0:00:10.6]} 67. Ke2 {[%clk 0:00:18.8]} 67... Rd5 {[%clk
0:00:10.8]} 68. Rg5 {[%clk 0:00:17.6]} 68... Rxg5 {[%clk 0:00:10.3]} 69. fxg5
{[%clk 0:00:19.5]} 69... Ke5 {[%clk 0:00:11.8]} 70. Kd2 {[%clk 0:00:20.8]} 70...
Kf5 {[%clk 0:00:13.1]} 71. Kc3 {[%clk 0:00:22.2]} 71... Kxg5 {[%clk 0:00:14.5]}
72. Kxc4 {[%clk 0:00:24.1]} 1/2-1/2

[Event "GrandPrix_29.05"]
[Site "Chess.com"]
[Date "2020.05.29"]
[Round "5"]
[White "Fandorine"]
[Black "anesar92"]
[Result "1-0"]
[WhiteElo "2514"]
[BlackElo "2237"]
[TimeControl "600+2"]
[EndTime "11:34:20 PDT"]
[Termination "Fandorine won by resignation"]

1. Nf3 {[%clk 0:10:01.9]} 1... Nf6 {[%clk 0:09:58.1]} 2. g3 {[%clk 0:10:01.8]}
2... g6 {[%clk 0:09:53.3]} 3. b3 {[%clk 0:10:00.3]} 3... Bg7 {[%clk 0:09:52.3]}
4. Bb2 {[%clk 0:10:01.6]} 4... b6 {[%clk 0:09:51.7]} 5. Bg2 {[%clk 0:10:02.3]}
5... Bb7 {[%clk 0:09:52.8]} 6. O-O {[%clk 0:10:03.8]} 6... O-O {[%clk
0:09:53.4]} 7. c4 {[%clk 0:10:04]} 7... c5 {[%clk 0:09:53.7]} 8. d4 {[%clk
0:10:04.9]} 8... e6 {[%clk 0:09:51.7]} 9. dxc5 {[%clk 0:09:48.2]} 9... bxc5
{[%clk 0:09:50.8]} 10. Nc3 {[%clk 0:09:49.5]} 10... Nc6 {[%clk 0:09:30.2]} 11.
Qd2 {[%clk 0:09:30.4]} 11... Qe7 {[%clk 0:09:14.3]} 12. Rfd1 {[%clk 0:09:29.6]}
12... Rfd8 {[%clk 0:09:14.6]} 13. Rac1 {[%clk 0:08:39.7]} 13... d6 {[%clk
0:09:06.4]} 14. e3 {[%clk 0:08:23]} 14... Rac8 {[%clk 0:08:58.2]} 15. Qe2 {[%clk
0:08:21.6]} 15... h6 {[%clk 0:07:41.7]} 16. Ne1 {[%clk 0:08:10.1]} 16... a6
{[%clk 0:07:02]} 17. Rd2 {[%clk 0:08:06.9]} 17... Ne8 {[%clk 0:06:48.3]} 18.
Rcd1 {[%clk 0:08:07]} 18... Ne5 {[%clk 0:06:44.2]} 19. f4 {[%clk 0:08:06.4]}
19... Nc6 {[%clk 0:06:32]} 20. Nf3 {[%clk 0:07:55.9]} 20... Nf6 {[%clk
0:06:02.8]} 21. h3 {[%clk 0:07:32]} 21... d5 {[%clk 0:05:47.3]} 22. Kh2 {[%clk
0:07:22.9]} 22... Ne4 {[%clk 0:05:03.3]} 23. Nxe4 {[%clk 0:06:42]} 23... dxe4
{[%clk 0:05:05.2]} 24. Ne1 {[%clk 0:06:41]} 24... f5 {[%clk 0:04:58.2]} 25. Bxg7
{[%clk 0:06:30.2]} 25... Kxg7 {[%clk 0:04:56.7]} 26. Nc2 {[%clk 0:06:29.8]}
26... Rxd2 {[%clk 0:04:50.1]} 27. Rxd2 {[%clk 0:06:29.7]} 27... Rd8 {[%clk
0:04:50.9]} 28. Bf1 {[%clk 0:06:10.2]} 28... Rxd2 {[%clk 0:03:45.9]} 29. Qxd2
{[%clk 0:06:12.1]} 29... Qd8 {[%clk 0:03:46.4]} 30. Qxd8 {[%clk 0:05:55.8]}
30... Nxd8 {[%clk 0:03:48.3]} 31. Na3 {[%clk 0:05:57.6]} 31... Nc6 {[%clk
0:03:40.8]} 32. Nb1 {[%clk 0:05:58.5]} 32... Kf6 {[%clk 0:03:32.5]} 33. Nc3
{[%clk 0:05:54]} 33... Ke7 {[%clk 0:03:33]} 34. g4 {[%clk 0:05:45.1]} 34... Kd6
{[%clk 0:03:28.6]} 35. Kg3 {[%clk 0:05:45.5]} 35... Ne7 {[%clk 0:03:16.6]} 36.
Be2 {[%clk 0:05:40.7]} 36... Bc6 {[%clk 0:02:59.3]} 37. a3 {[%clk 0:04:45.5]}
37... a5 {[%clk 0:02:53]} 38. Na2 {[%clk 0:04:46.5]} 38... e5 {[%clk 0:02:47.6]}
39. b4 {[%clk 0:04:29.8]} 39... axb4 {[%clk 0:02:35.8]} 40. axb4 {[%clk
0:04:30.6]} 40... cxb4 {[%clk 0:02:36.4]} 41. Nxb4 {[%clk 0:04:32.5]} 41... Bd7
{[%clk 0:02:34.1]} 42. Na6 {[%clk 0:04:10.9]} 42... g5 {[%clk 0:02:23.9]} 43.
c5+ {[%clk 0:03:44.8]} 43... Ke6 {[%clk 0:02:21]} 44. fxg5 {[%clk 0:03:35.8]}
44... hxg5 {[%clk 0:01:49.1]} 45. gxf5+ {[%clk 0:03:36.8]} 45... Nxf5+ {[%clk
0:01:51]} 46. Kf2 {[%clk 0:03:38]} 46... Kf6 {[%clk 0:01:44]} 47. Bg4 {[%clk
0:03:27.6]} 47... Bb5 {[%clk 0:01:08.3]} 48. Nc7 {[%clk 0:03:01.8]} 48... Bc6
{[%clk 0:01:04.5]} 49. Bxf5 {[%clk 0:02:48.9]} 49... Kxf5 {[%clk 0:01:06.4]} 50.
Kg3 {[%clk 0:02:50]} 50... Kf6 {[%clk 0:01:05.1]} 51. Na6 {[%clk 0:02:51.1]}
51... Ke7 {[%clk 0:00:51.8]} 52. Nb4 {[%clk 0:02:50.1]} 52... Bb5 {[%clk
0:00:51.1]} 53. Nd5+ {[%clk 0:02:37.3]} 53... Kf7 {[%clk 0:00:47.4]} 54. Nb4
{[%clk 0:02:05.9]} 54... Kf6 {[%clk 0:00:46]} 55. c6 {[%clk 0:02:01.2]} 55...
Ke7 {[%clk 0:00:46.2]} 56. Kg4 {[%clk 0:01:44.5]} 56... Bf1 {[%clk 0:00:46.5]}
57. Nd5+ {[%clk 0:01:16.6]} 57... Kd6 {[%clk 0:00:46.9]} 58. c7 {[%clk
0:01:10.9]} 58... Kd7 {[%clk 0:00:47.6]} 59. Nf6+ {[%clk 0:00:53.9]} 59... Kxc7
{[%clk 0:00:44.6]} 60. Nh7 {[%clk 0:00:43.2]} 60... Kd6 {[%clk 0:00:40.7]} 61.
Nxg5 {[%clk 0:00:42.2]} 61... Kd5 {[%clk 0:00:41.3]} 62. h4 {[%clk 0:00:29.8]}
62... Kc4 {[%clk 0:00:31.4]} 63. Kg3 {[%clk 0:00:18]} 63... Be2 {[%clk
0:00:19.2]} 64. Nxe4 {[%clk 0:00:09]} 64... Kd3 {[%clk 0:00:18.2]} 65. Kf2
{[%clk 0:00:10.3]} 65... Bd1 {[%clk 0:00:09.5]} 66. Nf6 {[%clk 0:00:11]} 66...
Kc4 {[%clk 0:00:06]} 67. h5 {[%clk 0:00:10.7]} 1-0

[Event "GrandPrix_29.05"]
[Site "Chess.com"]
[Date "2020.05.29"]
[Round "5"]
[White "Onischuk_V"]
[Black "dzhumagaliev"]
[Result "1/2-1/2"]
[WhiteElo "2265"]
[BlackElo "2191"]
[TimeControl "600+2"]
[EndTime "11:34:22 PDT"]
[Termination "Game drawn - insufficient material"]

1. e4 {[%clk 0:10:01.2]} 1... c5 {[%clk 0:09:52.4]} 2. Nf3 {[%clk 0:10:02]} 2...
e6 {[%clk 0:09:52.3]} 3. b3 {[%clk 0:10:02.8]} 3... Nc6 {[%clk 0:09:52.4]} 4.
Bb2 {[%clk 0:10:03.9]} 4... d5 {[%clk 0:09:45]} 5. exd5 {[%clk 0:09:57.2]} 5...
exd5 {[%clk 0:09:46.9]} 6. Bb5 {[%clk 0:09:54.2]} 6... Nf6 {[%clk 0:09:34.2]} 7.
O-O {[%clk 0:09:54.1]} 7... Be7 {[%clk 0:09:34.2]} 8. Ne5 {[%clk 0:08:46.4]}
8... Qc7 {[%clk 0:09:20.4]} 9. Nxc6 {[%clk 0:08:22.7]} 9... bxc6 {[%clk
0:09:20.7]} 10. Bd3 {[%clk 0:08:20.8]} 10... O-O {[%clk 0:09:18.5]} 11. Qf3
{[%clk 0:07:58.4]} 11... Bg4 {[%clk 0:08:48.6]} 12. Qg3 {[%clk 0:07:58.2]} 12...
Bd6 {[%clk 0:08:48.7]} 13. Qh4 {[%clk 0:07:58.8]} 13... d4 {[%clk 0:08:50]} 14.
f3 {[%clk 0:07:24.7]} 14... Be6 {[%clk 0:08:42.5]} 15. Na3 {[%clk 0:07:25.1]}
15... h6 {[%clk 0:08:25.8]} 16. Nc4 {[%clk 0:07:11.9]} 16... Bf4 {[%clk
0:08:23]} 17. Ba3 {[%clk 0:06:41.1]} 17... Rfd8 {[%clk 0:08:23.7]} 18. g4 {[%clk
0:05:08.2]} 18... Rd5 {[%clk 0:08:02.7]} 19. Rae1 {[%clk 0:05:06.4]} 19... h5
{[%clk 0:07:57.3]} 20. Rxe6 {[%clk 0:04:12.7]} 20... fxe6 {[%clk 0:07:59.2]} 21.
Kg2 {[%clk 0:04:14.1]} 21... Rg5 {[%clk 0:06:02.9]} 22. h3 {[%clk 0:04:04.5]}
22... Re8 {[%clk 0:05:14.1]} 23. Qe1 {[%clk 0:03:55.6]} 23... hxg4 {[%clk
0:04:45.3]} 24. fxg4 {[%clk 0:03:52.7]} 24... e5 {[%clk 0:04:38]} 25. Bf5 {[%clk
0:03:11.9]} 25... Qd8 {[%clk 0:03:25.2]} 26. Qh4 {[%clk 0:02:39.8]} 26... Nh5
{[%clk 0:02:37.4]} 27. Be4 {[%clk 0:01:53.7]} 27... Bg3 {[%clk 0:02:19.2]} 28.
Qxh5 {[%clk 0:01:34.3]} 28... Rxh5 {[%clk 0:02:18.5]} 29. gxh5 {[%clk
0:01:35.2]} 29... Bf4 {[%clk 0:02:15.8]} 30. Bxc5 {[%clk 0:01:14]} 30... Qg5+
{[%clk 0:02:15.7]} 31. Kf2 {[%clk 0:01:15]} 31... Bxd2 {[%clk 0:02:03]} 32. Ke2
{[%clk 0:01:10.5]} 32... Be3 {[%clk 0:01:52.2]} 33. Bxc6 {[%clk 0:00:52.6]}
33... d3+ {[%clk 0:01:49.1]} 34. Kd1 {[%clk 0:00:21]} 34... Qxh5+ {[%clk
0:01:29.4]} 35. Bf3 {[%clk 0:00:20]} 35... dxc2+ {[%clk 0:01:26.1]} 36. Ke2
{[%clk 0:00:14.9]} 36... Qxf3+ {[%clk 0:01:07.6]} 37. Kxf3 {[%clk 0:00:15.1]}
37... c1=Q {[%clk 0:01:08.9]} 38. Rxc1 {[%clk 0:00:15.4]} 38... Bxc1 {[%clk
0:01:10.8]} 39. Bxa7 {[%clk 0:00:14.4]} 39... e4+ {[%clk 0:01:07.9]} 40. Ke2
{[%clk 0:00:09.4]} 40... Ra8 {[%clk 0:01:08.6]} 41. Bd4 {[%clk 0:00:08.6]} 41...
Rxa2+ {[%clk 0:01:09.3]} 42. Kd1 {[%clk 0:00:10]} 42... Bf4 {[%clk 0:01:08.3]}
43. b4 {[%clk 0:00:11]} 43... Kf7 {[%clk 0:00:55.9]} 44. b5 {[%clk 0:00:11.8]}
44... Ke6 {[%clk 0:00:51]} 45. Bxg7 {[%clk 0:00:12.3]} 45... Kd5 {[%clk
0:00:49.3]} 46. Nb2 {[%clk 0:00:11.9]} 46... Ra5 {[%clk 0:00:39.1]} 47. b6
{[%clk 0:00:11.8]} 47... Rb5 {[%clk 0:00:40.2]} 48. Na4 {[%clk 0:00:12.9]} 48...
Rb4 {[%clk 0:00:31]} 49. Nc3+ {[%clk 0:00:12.2]} 49... Kc6 {[%clk 0:00:30]} 50.
Bf8 {[%clk 0:00:11.5]} 50... Rc4 {[%clk 0:00:26.9]} 51. Ne2 {[%clk 0:00:10.7]}
51... Be3 {[%clk 0:00:23.9]} 52. h4 {[%clk 0:00:11.3]} 52... Kxb6 {[%clk
0:00:23.4]} 53. h5 {[%clk 0:00:12.6]} 53... Rc8 {[%clk 0:00:22.9]} 54. Bg7
{[%clk 0:00:13.3]} 54... Rd8+ {[%clk 0:00:23.6]} 55. Ke1 {[%clk 0:00:14.1]}
55... Rd6 {[%clk 0:00:20.1]} 56. Ng3 {[%clk 0:00:12.4]} 56... Bf4 {[%clk
0:00:11.1]} 57. Nf5 {[%clk 0:00:11.5]} 57... Rd5 {[%clk 0:00:09.3]} 58. h6
{[%clk 0:00:11]} 58... Bxh6 {[%clk 0:00:07.6]} 59. Nxh6 {[%clk 0:00:12.2]} 59...
Kc5 {[%clk 0:00:07.2]} 60. Ng4 {[%clk 0:00:09.8]} 60... Rg5 {[%clk 0:00:07.9]}
61. Bf8+ {[%clk 0:00:10.5]} 61... Kd4 {[%clk 0:00:09]} 62. Nf2 {[%clk
0:00:10.8]} 62... e3 {[%clk 0:00:07.4]} 63. Nd1 {[%clk 0:00:07.8]} 63... Rg2
{[%clk 0:00:07.4]} 64. Bh6 {[%clk 0:00:06.6]} 64... e2 {[%clk 0:00:05.7]} 65.
Nf2 {[%clk 0:00:07.2]} 65... Rh2 {[%clk 0:00:04.7]} 66. Bf4 {[%clk 0:00:07.1]}
66... Rxf2 {[%clk 0:00:03.7]} 67. Kxf2 {[%clk 0:00:07.8]} 67... Kd3 {[%clk
0:00:05.6]} 68. Ke1 {[%clk 0:00:09.1]} 68... Ke4 {[%clk 0:00:07.5]} 69. Kxe2
{[%clk 0:00:10.5]} 1/2-1/2

[Event "GrandPrix_29.05"]
[Site "Chess.com"]
[Date "2020.05.29"]
[Round "5"]
[White "PavelShkapenko"]
[Black "woodhy"]
[Result "1-0"]
[WhiteElo "2373"]
[BlackElo "2078"]
[TimeControl "600+2"]
[EndTime "11:34:27 PDT"]
[Termination "PavelShkapenko won by resignation"]

1. e4 {[%clk 0:09:58.2]} 1... e6 {[%clk 0:09:55.3]} 2. d4 {[%clk 0:09:58.6]}
2... d5 {[%clk 0:09:55]} 3. exd5 {[%clk 0:10:00.2]} 3... exd5 {[%clk 0:09:54.7]}
4. Nf3 {[%clk 0:10:01.4]} 4... Bd6 {[%clk 0:09:54.6]} 5. c4 {[%clk 0:10:02.1]}
5... c6 {[%clk 0:09:55.6]} 6. Nc3 {[%clk 0:10:01.9]} 6... Ne7 {[%clk 0:09:56]}
7. Bd3 {[%clk 0:10:03]} 7... O-O {[%clk 0:09:56.1]} 8. O-O {[%clk 0:10:04.1]}
8... dxc4 {[%clk 0:09:39.1]} 9. Bxc4 {[%clk 0:10:04.7]} 9... Bf5 {[%clk
0:09:38.5]} 10. Re1 {[%clk 0:10:01.9]} 10... Nd7 {[%clk 0:09:39.1]} 11. Bg5
{[%clk 0:10:02.6]} 11... Nb6 {[%clk 0:09:39.6]} 12. Bb3 {[%clk 0:10:03.7]} 12...
h6 {[%clk 0:09:40.2]} 13. Bxe7 {[%clk 0:10:04.1]} 13... Bxe7 {[%clk 0:09:39.5]}
14. Ne5 {[%clk 0:10:05.7]} 14... Bf6 {[%clk 0:09:08.5]} 15. Qh5 {[%clk
0:09:57.9]} 15... Bxe5 {[%clk 0:06:07.2]} 16. Rxe5 {[%clk 0:09:55.6]} 16... g6
{[%clk 0:04:48.9]} 17. Qxh6 {[%clk 0:08:44]} 17... Qxd4 {[%clk 0:04:47.1]} 18.
Rae1 {[%clk 0:08:45.6]} 18... Nd7 {[%clk 0:03:48.3]} 19. Rxf5 {[%clk 0:06:25.9]}
19... gxf5 {[%clk 0:03:50.2]} 20. Re3 {[%clk 0:06:26.8]} 20... f4 {[%clk
0:03:03.3]} 21. Rh3 {[%clk 0:06:21.5]} 21... Qg7 {[%clk 0:02:51.8]} 22. Qxf4
{[%clk 0:06:22.2]} 22... Rfe8 {[%clk 0:01:20.2]} 23. Kf1 {[%clk 0:06:20.3]}
23... Kf8 {[%clk 0:00:19.5]} 24. Ne4 {[%clk 0:01:20.8]} 24... Re5 {[%clk
0:00:18.5]} 25. Rf3 {[%clk 0:00:35]} 25... Ke7 {[%clk 0:00:12.9]} 26. Qxf7+
{[%clk 0:00:30.1]} 26... Qxf7 {[%clk 0:00:13.5]} 27. Rxf7+ {[%clk 0:00:31.6]}
27... Kd8 {[%clk 0:00:15.4]} 28. Nd6 {[%clk 0:00:21.1]} 28... Rb8 {[%clk
0:00:15.8]} 29. g4 {[%clk 0:00:17.1]} 29... Kc7 {[%clk 0:00:14.6]} 30. Nc4
{[%clk 0:00:18]} 30... Re4 {[%clk 0:00:14.4]} 31. f3 {[%clk 0:00:17.8]} 31...
Rd4 {[%clk 0:00:13.5]} 32. Kf2 {[%clk 0:00:16.9]} 32... Rh8 {[%clk 0:00:13.9]}
33. Kg3 {[%clk 0:00:17.7]} 33... Kd8 {[%clk 0:00:12]} 34. Na5 {[%clk 0:00:15.6]}
34... Kc7 {[%clk 0:00:10.7]} 35. Be6 {[%clk 0:00:16.6]} 35... b6 {[%clk
0:00:11.9]} 36. Nb3 {[%clk 0:00:16.5]} 36... Rd6 {[%clk 0:00:12.6]} 37. Bf5
{[%clk 0:00:17.1]} 37... c5 {[%clk 0:00:13.1]} 38. Nc1 {[%clk 0:00:17.2]} 38...
Kd8 {[%clk 0:00:13.5]} 39. Nd3 {[%clk 0:00:18.1]} 39... c4 {[%clk 0:00:14.1]}
40. Nf4 {[%clk 0:00:19.1]} 40... Ne5 {[%clk 0:00:15.1]} 41. Rg7 {[%clk
0:00:19.1]} 41... b5 {[%clk 0:00:15.1]} 42. Ne6+ {[%clk 0:00:20.2]} 42... Ke8
{[%clk 0:00:16.4]} 43. Rxa7 {[%clk 0:00:19.4]} 43... Nf7 {[%clk 0:00:14.9]} 44.
Nc7+ {[%clk 0:00:20]} 44... Kf8 {[%clk 0:00:15.3]} 45. Nxb5 {[%clk 0:00:21.1]}
45... Rd2 {[%clk 0:00:16.3]} 46. h4 {[%clk 0:00:20.4]} 46... Rxb2 {[%clk
0:00:15.3]} 47. Nd4 {[%clk 0:00:21.7]} 47... c3 {[%clk 0:00:16.1]} 48. Bg6
{[%clk 0:00:22.6]} 48... Nd8 {[%clk 0:00:10.7]} 49. Rc7 {[%clk 0:00:22]} 49...
Rxa2 {[%clk 0:00:10.3]} 50. Rxc3 {[%clk 0:00:22.3]} 50... Rd2 {[%clk 0:00:12.2]}
51. Nf5 {[%clk 0:00:21.6]} 51... Rg8 {[%clk 0:00:11.9]} 52. h5 {[%clk
0:00:22.7]} 52... Ne6 {[%clk 0:00:12.3]} 53. Rc6 {[%clk 0:00:22.6]} 53... Rxg6
{[%clk 0:00:06.9]} 54. hxg6 {[%clk 0:00:23.1]} 54... Nd8 {[%clk 0:00:07.1]} 55.
Rf6+ {[%clk 0:00:21]} 55... Kg8 {[%clk 0:00:07.2]} 56. Rd6 {[%clk 0:00:19.2]}
56... Rxd6 {[%clk 0:00:06.7]} 57. Nxd6 {[%clk 0:00:20.8]} 57... Kg7 {[%clk
0:00:08.6]} 58. f4 {[%clk 0:00:21.6]} 58... Kxg6 {[%clk 0:00:09.5]} 59. f5+
{[%clk 0:00:23]} 59... Kf6 {[%clk 0:00:11.4]} 60. Kf4 {[%clk 0:00:23.8]} 60...
Nc6 {[%clk 0:00:12.2]} 61. g5+ {[%clk 0:00:24.1]} 61... Kg7 {[%clk 0:00:14.1]}
62. Nc4 {[%clk 0:00:23]} 62... Nd4 {[%clk 0:00:14.8]} 63. f6+ {[%clk 0:00:23.5]}
63... Kg6 {[%clk 0:00:15.6]} 64. Ne5+ {[%clk 0:00:24.5]} 64... Kh7 {[%clk
0:00:16.8]} 65. g6+ {[%clk 0:00:21.1]} 65... Kh6 {[%clk 0:00:17.4]} 66. Kg4
{[%clk 0:00:22.1]} 66... Ne6 {[%clk 0:00:17.5]} 67. Kf5 {[%clk 0:00:22.9]} 67...
Nd4+ {[%clk 0:00:18.5]} 68. Ke4 {[%clk 0:00:24.1]} 68... Ne6 {[%clk 0:00:19.8]}
69. Kd5 {[%clk 0:00:19.9]} 69... Nf4+ {[%clk 0:00:14.1]} 70. Kd6 {[%clk
0:00:20.9]} 70... Nh5 {[%clk 0:00:12.2]} 71. f7 {[%clk 0:00:20.8]} 71... Kg7
{[%clk 0:00:12.7]} 72. Ke7 {[%clk 0:00:22.4]} 72... Kh6 {[%clk 0:00:10.7]} 73.
f8=Q+ {[%clk 0:00:23.2]} 73... Ng7 {[%clk 0:00:11.4]} 74. Qh8+ {[%clk
0:00:23.3]} 74... Kg5 {[%clk 0:00:11.8]} 75. Qxg7 {[%clk 0:00:24.6]} 75... Kf5
{[%clk 0:00:13.7]} 76. Qf7+ {[%clk 0:00:25.4]} 1-0